[Event "Titled Tuesday Blitz February 14 Late 2023"]
[White "Fernandez Guillen, Ernesto J."]
[Black "Li, Ruifeng"]
[WhiteFideId "3512428"]
[BlackFideId "2061074"]
[WhiteElo "2477"]
[BlackElo "2541"]
[Result "0-1"]
[Round "09"]
[TimeControl "180+2"]
[Date "2023.02.14"]
[WhiteClock "0:00:13"]
[BlackClock "0:00:05"]

1. e4 {[%clk 0:02:42]}  d6 {[%clk 0:03:00]} 2. d4 {[%clk 0:02:41]}  Nf6 {[%clk 0:03:00]} 3. Nc3 {[%clk 0:02:42]}  Nc6 {[%clk 0:03:01]} 4. f3 {[%clk 0:02:40]}  e5 {[%clk 0:02:58]} 5. dxe5 {[%clk 0:02:39]}  Nxe5 {[%clk 0:02:57]} 6. Be3 {[%clk 0:02:37]}  Be7 {[%clk 0:02:55]} 7. Qd2 {[%clk 0:02:36]}  c6 {[%clk 0:02:54]} 8. O-O-O {[%clk 0:02:37]}  Qa5 {[%clk 0:02:54]} 9. g4 {[%clk 0:02:30]}  h6 {[%clk 0:02:46]} 10. Kb1 {[%clk 0:02:24]}  b5 {[%clk 0:02:41]} 11. Nd5 {[%clk 0:01:23]}  Qxd2 {[%clk 0:02:29]} 12. Nxf6+ {[%clk 0:01:19]}  Bxf6 {[%clk 0:02:29]} 13. Rxd2 {[%clk 0:01:18]}  Ke7 {[%clk 0:02:22]} 14. b3 {[%clk 0:01:16]}  Bb7 {[%clk 0:02:21]} 15. h3 {[%clk 0:01:15]}  a5 {[%clk 0:02:11]} 16. f4 {[%clk 0:01:15]}  Nd7 {[%clk 0:02:07]} 17. Bg2 {[%clk 0:01:05]}  Bc3 {[%clk 0:01:52]} 18. Rd3 {[%clk 0:01:05]}  b4 {[%clk 0:01:52]} 19. Nf3 {[%clk 0:00:57]}  a4 {[%clk 0:01:44]} 20. Bd2 {[%clk 0:00:45]}  axb3 {[%clk 0:01:43]} 21. cxb3 {[%clk 0:00:46]}  Nc5 {[%clk 0:01:04]} 22. Re3 {[%clk 0:00:46]}  Bxd2 {[%clk 0:00:51]} 23. Nxd2 {[%clk 0:00:47]}  Ne6 {[%clk 0:00:51]} 24. e5 {[%clk 0:00:33]}  d5 {[%clk 0:00:33]} 25. f5 {[%clk 0:00:33]}  Nd4 {[%clk 0:00:33]} 26. f6+ {[%clk 0:00:24]}  Kf8 {[%clk 0:00:21]} 27. Rf1 {[%clk 0:00:12]}  Nb5 {[%clk 0:00:18]} 28. fxg7+ {[%clk 0:00:10]}  Kxg7 {[%clk 0:00:18]} 29. e6 {[%clk 0:00:09]}  Nc3+ {[%clk 0:00:18]} 30. Kc1 {[%clk 0:00:09]}  fxe6 {[%clk 0:00:16]} 31. Rxe6 {[%clk 0:00:10]}  Rhe8 {[%clk 0:00:15]} 32. Rff6 {[%clk 0:00:09]}  Rxe6 {[%clk 0:00:08]} 33. Rxe6 {[%clk 0:00:09]}  Bc8 {[%clk 0:00:07]} 34. Rxc6 {[%clk 0:00:09]}  Nxa2+ {[%clk 0:00:02]} 35. Kc2 {[%clk 0:00:09]}  Nc3 {[%clk 0:00:02]} 36. Rc7+ {[%clk 0:00:09]}  Kf6 {[%clk 0:00:02]} 37. Kd3 {[%clk 0:00:10]}  Ba6+ {[%clk 0:00:01]} 38. Kd4 {[%clk 0:00:10]}  Nb5+ {[%clk 0:00:02]} 39. Kxd5 {[%clk 0:00:09]}  Nxc7+ {[%clk 0:00:02]} 40. Kd6 {[%clk 0:00:10]}  Rd8+ {[%clk 0:00:03]} 41. Kxc7 {[%clk 0:00:10]}  Rxd2 {[%clk 0:00:04]} 42. Be4 {[%clk 0:00:11]}  Bd3 {[%clk 0:00:04]} 43. Bd5 {[%clk 0:00:11]}  Bc2 {[%clk 0:00:04]} 44. Bc4 {[%clk 0:00:12]}  Rg2 {[%clk 0:00:03]} 45. Kb6 {[%clk 0:00:12]}  Rg3 {[%clk 0:00:04]} 46. Kc5 {[%clk 0:00:13]}  Bxb3 {[%clk 0:00:04]} 47. Bb5 {[%clk 0:00:12]}  Bc2 {[%clk 0:00:04]} 48. Kxb4 {[%clk 0:00:13]}  Rb3+ {[%clk 0:00:04]} 49. Kc4 {[%clk 0:00:13]}  Rb2 {[%clk 0:00:05]} 50. Bc6 {[%clk 0:00:12]}  Bb3+ {[%clk 0:00:04]} 51. Kc3 {[%clk 0:00:13]}  Rc2+ {[%clk 0:00:05]} 52. Kxb3 {[%clk 0:00:13]}  Rxc6 {[%clk 0:00:05]} 0-1


[Site "https://www.chess.com"]

[Event "Titled Tuesday Blitz February 14 Late 2023"]
[White "Boyer, Mahel"]
[Black "Baskakov, Egor"]
[WhiteFideId "45102422"]
[BlackFideId "24197866"]
[WhiteElo "2489"]
[BlackElo "2215"]
[Result "0-1"]
[Round "09"]
[TimeControl "180+2"]
[Date "2023.02.14"]
[WhiteClock "0:00:01"]
[BlackClock "0:00:38"]

1. d4 {[%clk 0:03:00]}  Nf6 {[%clk 0:02:57]} 2. c4 {[%clk 0:02:59]}  e6 {[%clk 0:02:57]} 3. Nc3 {[%clk 0:02:58]}  d5 {[%clk 0:02:58]} 4. cxd5 {[%clk 0:02:55]}  Nxd5 {[%clk 0:02:59]} 5. Nf3 {[%clk 0:02:49]}  Be7 {[%clk 0:02:58]} 6. g3 {[%clk 0:02:49]}  O-O {[%clk 0:02:57]} 7. Bg2 {[%clk 0:02:49]}  b6 {[%clk 0:02:58]} 8. Nxd5 {[%clk 0:02:48]}  exd5 {[%clk 0:02:57]} 9. O-O {[%clk 0:02:48]}  Bb7 {[%clk 0:02:58]} 10. Bf4 {[%clk 0:02:48]}  Bd6 {[%clk 0:02:57]} 11. Bxd6 {[%clk 0:02:44]}  Qxd6 {[%clk 0:02:58]} 12. Qc2 {[%clk 0:02:43]}  Nd7 {[%clk 0:02:58]} 13. Rac1 {[%clk 0:02:42]}  c5 {[%clk 0:02:52]} 14. dxc5 {[%clk 0:02:41]}  bxc5 {[%clk 0:02:52]} 15. Rfd1 {[%clk 0:02:42]}  Rac8 {[%clk 0:02:46]} 16. Qa4 {[%clk 0:02:16]}  a6 {[%clk 0:02:41]} 17. Qa3 {[%clk 0:02:16]}  Qb6 {[%clk 0:02:30]} 18. e3 {[%clk 0:02:11]}  Rc7 {[%clk 0:02:26]} 19. Ne1 {[%clk 0:02:11]}  Nf6 {[%clk 0:02:24]} 20. Nd3 {[%clk 0:02:11]}  Rfc8 {[%clk 0:02:19]} 21. Nf4 {[%clk 0:02:10]}  d4 {[%clk 0:02:12]} 22. Bxb7 {[%clk 0:02:09]}  Qxb7 {[%clk 0:02:13]} 23. exd4 {[%clk 0:02:07]}  cxd4 {[%clk 0:02:14]} 24. Rxc7 {[%clk 0:02:07]}  Rxc7 {[%clk 0:02:15]} 25. b3 {[%clk 0:01:56]}  Qf3 {[%clk 0:01:58]} 26. Rxd4 {[%clk 0:01:52]}  h6 {[%clk 0:01:51]} 27. Rd3 {[%clk 0:01:48]}  Qe4 {[%clk 0:01:47]} 28. Re3 {[%clk 0:01:41]}  Qb1+ {[%clk 0:01:37]} 29. Kg2 {[%clk 0:01:41]}  g5 {[%clk 0:01:33]} 30. Nd5 {[%clk 0:00:38]}  Nxd5 {[%clk 0:01:21]} 31. Re8+ {[%clk 0:00:38]}  Kh7 {[%clk 0:01:20]} 32. Qd6 {[%clk 0:00:10]}  Qd3 {[%clk 0:01:00]} 33. Qe5 {[%clk 0:00:01]}  f6 {[%clk 0:00:46]} 34. Qe6 {[%clk 0:00:01]}  Rg7 {[%clk 0:00:42]} 35. h4 {[%clk 0:00:01]}  Nc7 {[%clk 0:00:38]} 0-1


[Site "https://www.chess.com"]

[Event "Titled Tuesday Blitz February 14 Late 2023"]
[White "Klose, Eli"]
[Black "Christiansen, Johan-Sebastian"]
[WhiteFideId "16242955"]
[BlackFideId "1512668"]
[WhiteElo "1519"]
[BlackElo "2579"]
[Result "1-0"]
[Round "09"]
[TimeControl "180+2"]
[Date "2023.02.14"]
[WhiteClock "0:00:20"]
[BlackClock "0:00:01"]

1. e4 {[%clk 0:03:00]}  e5 {[%clk 0:02:59]} 2. Nf3 {[%clk 0:02:59]}  Nc6 {[%clk 0:02:59]} 3. d4 {[%clk 0:03:00]}  exd4 {[%clk 0:02:59]} 4. Bc4 {[%clk 0:03:00]}  Nf6 {[%clk 0:02:58]} 5. O-O {[%clk 0:02:59]}  Nxe4 {[%clk 0:02:57]} 6. Re1 {[%clk 0:02:59]}  d5 {[%clk 0:02:58]} 7. Bxd5 {[%clk 0:03:00]}  Qxd5 {[%clk 0:02:58]} 8. Nc3 {[%clk 0:03:00]}  Qd7 {[%clk 0:02:55]} 9. Rxe4+ {[%clk 0:02:59]}  Be7 {[%clk 0:02:55]} 10. Nxd4 {[%clk 0:02:59]}  Nxd4 {[%clk 0:02:37]} 11. Rxd4 {[%clk 0:02:58]}  Qc6 {[%clk 0:02:31]} 12. Nd5 {[%clk 0:02:51]}  Bc5 {[%clk 0:02:25]} 13. Bf4 {[%clk 0:02:32]}  O-O {[%clk 0:02:09]} 14. b4 {[%clk 0:02:31]}  Bd6 {[%clk 0:01:57]} 15. b5 {[%clk 0:01:36]}  Qc5 {[%clk 0:01:57]} 16. Bxd6 {[%clk 0:01:22]}  Qxd6 {[%clk 0:01:50]} 17. c4 {[%clk 0:01:10]}  Bf5 {[%clk 0:01:29]} 18. Ne3 {[%clk 0:01:04]}  Qe6 {[%clk 0:01:25]} 19. Qf3 {[%clk 0:01:01]}  Bg6 {[%clk 0:01:21]} 20. Qxb7 {[%clk 0:00:59]}  a6 {[%clk 0:01:11]} 21. Qxc7 {[%clk 0:00:46]}  axb5 {[%clk 0:01:08]} 22. cxb5 {[%clk 0:00:47]}  Rxa2 {[%clk 0:01:08]} 23. Rxa2 {[%clk 0:00:43]}  Qxa2 {[%clk 0:01:09]} 24. b6 {[%clk 0:00:35]}  Qb2 {[%clk 0:01:03]} 25. Rd8 {[%clk 0:00:28]}  Qb1+ {[%clk 0:00:28]} 26. Nd1 {[%clk 0:00:27]}  f6 {[%clk 0:00:17]} 27. Rxf8+ {[%clk 0:00:22]}  Kxf8 {[%clk 0:00:17]} 28. Qd6+ {[%clk 0:00:21]}  Ke8 {[%clk 0:00:11]} 29. h3 {[%clk 0:00:20]}  Bc2 {[%clk 0:00:11]} 30. Qc6+ {[%clk 0:00:20]}  Kf8 {[%clk 0:00:09]} 31. Qc8+ {[%clk 0:00:19]}  Ke7 {[%clk 0:00:07]} 32. Qc7+ {[%clk 0:00:20]}  Kf8 {[%clk 0:00:07]} 33. b7 {[%clk 0:00:20]}  Qxd1+ {[%clk 0:00:02]} 34. Kh2 {[%clk 0:00:21]}  Qd6+ {[%clk 0:00:01]} 35. Qxd6+ {[%clk 0:00:20]} 1-0


[Site "https://www.chess.com"]

[Event "Titled Tuesday Blitz February 14 Late 2023"]
[White "Ozen, Bahadir"]
[Black "Ibadov, Dashgyn"]
[WhiteFideId "6337058"]
[BlackFideId "24107514"]
[WhiteElo "2369"]
[BlackElo "2391"]
[Result "1-0"]
[Round "09"]
[TimeControl "180+2"]
[Date "2023.02.14"]
[WhiteClock "0:00:25"]
[BlackClock "0:01:45"]

1. d4 {[%clk 0:03:00]}  Nf6 {[%clk 0:02:59]} 2. c4 {[%clk 0:03:00]}  c5 {[%clk 0:03:00]} 3. d5 {[%clk 0:03:00]}  d6 {[%clk 0:03:00]} 4. Nc3 {[%clk 0:02:59]}  g6 {[%clk 0:03:01]} 5. e4 {[%clk 0:02:59]}  Bg7 {[%clk 0:03:01]} 6. Nf3 {[%clk 0:02:52]}  O-O {[%clk 0:03:01]} 7. h3 {[%clk 0:02:48]}  e6 {[%clk 0:03:01]} 8. Be2 {[%clk 0:02:48]}  Re8 {[%clk 0:02:56]} 9. O-O {[%clk 0:02:47]}  exd5 {[%clk 0:02:54]} 10. exd5 {[%clk 0:02:47]}  Bf5 {[%clk 0:02:53]} 11. Bd3 {[%clk 0:02:33]}  Ne4 {[%clk 0:02:49]} 12. Bxe4 {[%clk 0:02:26]}  Bxe4 {[%clk 0:02:49]} 13. Nxe4 {[%clk 0:02:24]}  Rxe4 {[%clk 0:02:49]} 14. Qc2 {[%clk 0:02:18]}  Re8 {[%clk 0:02:46]} 15. Bg5 {[%clk 0:02:15]}  Qc7 {[%clk 0:02:44]} 16. Rae1 {[%clk 0:02:10]}  Nd7 {[%clk 0:02:44]} 17. b3 {[%clk 0:02:10]}  Ne5 {[%clk 0:02:44]} 18. Nxe5 {[%clk 0:02:09]}  Bxe5 {[%clk 0:02:43]} 19. Re2 {[%clk 0:02:04]}  Qd7 {[%clk 0:02:37]} 20. Rfe1 {[%clk 0:02:01]}  Kg7 {[%clk 0:02:28]} 21. Qd2 {[%clk 0:01:56]}  Bd4 {[%clk 0:02:24]} 22. Re7 {[%clk 0:01:41]}  Rxe7 {[%clk 0:02:19]} 23. Rxe7 {[%clk 0:01:41]}  Qf5 {[%clk 0:02:20]} 24. Bh6+ {[%clk 0:01:41]}  Kg8 {[%clk 0:02:19]} 25. Qe2 {[%clk 0:01:24]}  Be5 {[%clk 0:02:10]} 26. f4 {[%clk 0:01:08]}  Bd4+ {[%clk 0:02:08]} 27. Kh2 {[%clk 0:01:06]}  Qc8 {[%clk 0:02:09]} 28. f5 {[%clk 0:00:50]}  Bf6 {[%clk 0:02:03]} 29. fxg6 {[%clk 0:00:39]}  hxg6 {[%clk 0:01:54]} 30. Re4 {[%clk 0:00:38]}  Be5+ {[%clk 0:01:48]} 31. Rxe5 {[%clk 0:00:30]}  dxe5 {[%clk 0:01:45]} 32. Qxe5 {[%clk 0:00:31]}  f6 {[%clk 0:01:45]} 33. Qe7 {[%clk 0:00:25]} 1-0


[Site "https://www.chess.com"]

[Event "Titled Tuesday Blitz February 14 Late 2023"]
[White "Alvarez Calzadilla, Jose Avelino"]
[Black "Chigaev, Maksim"]
[WhiteFideId "3526151"]
[BlackFideId "4108116"]
[WhiteElo "2386"]
[BlackElo "2628"]
[Result "0-1"]
[Round "09"]
[TimeControl "180+2"]
[Date "2023.02.14"]
[WhiteClock "0:00:01"]
[BlackClock "0:00:02"]

1. e4 {[%clk 0:02:59]}  c5 {[%clk 0:03:00]} 2. Nf3 {[%clk 0:02:59]}  e6 {[%clk 0:03:00]} 3. d3 {[%clk 0:02:56]}  Nc6 {[%clk 0:03:00]} 4. g3 {[%clk 0:02:56]}  Nf6 {[%clk 0:03:00]} 5. Bg2 {[%clk 0:02:56]}  d6 {[%clk 0:03:01]} 6. O-O {[%clk 0:02:57]}  Be7 {[%clk 0:03:02]} 7. Re1 {[%clk 0:02:57]}  O-O {[%clk 0:03:03]} 8. c3 {[%clk 0:02:58]}  e5 {[%clk 0:02:59]} 9. h3 {[%clk 0:02:56]}  h6 {[%clk 0:02:53]} 10. d4 {[%clk 0:02:56]}  exd4 {[%clk 0:02:54]} 11. cxd4 {[%clk 0:02:57]}  d5 {[%clk 0:02:54]} 12. e5 {[%clk 0:02:47]}  Ne4 {[%clk 0:02:55]} 13. Nc3 {[%clk 0:02:43]}  Bf5 {[%clk 0:02:52]} 14. Be3 {[%clk 0:02:33]}  Nxc3 {[%clk 0:02:46]} 15. bxc3 {[%clk 0:02:33]}  c4 {[%clk 0:02:47]} 16. g4 {[%clk 0:02:29]}  Be6 {[%clk 0:02:46]} 17. Nd2 {[%clk 0:02:21]}  b5 {[%clk 0:02:21]} 18. f4 {[%clk 0:02:16]}  b4 {[%clk 0:02:13]} 19. f5 {[%clk 0:02:12]}  bxc3 {[%clk 0:02:13]} 20. Nf3 {[%clk 0:02:09]}  Nb4 {[%clk 0:02:04]} 21. Bf1 {[%clk 0:01:46]}  Rc8 {[%clk 0:01:51]} 22. a3 {[%clk 0:01:40]}  Nd3 {[%clk 0:01:47]} 23. Bxd3 {[%clk 0:01:39]}  cxd3 {[%clk 0:01:48]} 24. Qxd3 {[%clk 0:01:39]}  Bd7 {[%clk 0:01:45]} 25. Qc2 {[%clk 0:01:31]}  Re8 {[%clk 0:01:40]} 26. Re2 {[%clk 0:01:18]}  Bf8 {[%clk 0:01:35]} 27. Rg2 {[%clk 0:01:16]}  Qb6 {[%clk 0:01:29]} 28. Qf2 {[%clk 0:01:00]}  c2 {[%clk 0:01:17]} 29. Rc1 {[%clk 0:00:38]}  Bxa3 {[%clk 0:01:15]} 30. g5 {[%clk 0:00:36]}  Bxc1 {[%clk 0:01:13]} 31. Bxc1 {[%clk 0:00:36]}  Bxf5 {[%clk 0:00:34]} 32. gxh6 {[%clk 0:00:36]}  Bg6 {[%clk 0:00:31]} 33. hxg7 {[%clk 0:00:34]}  Kxg7 {[%clk 0:00:29]} 34. Nh4 {[%clk 0:00:34]}  Rh8 {[%clk 0:00:20]} 35. Kh2 {[%clk 0:00:29]}  Rxh4 {[%clk 0:00:14]} 36. Qxh4 {[%clk 0:00:28]}  Rh8 {[%clk 0:00:15]} 37. Qf4 {[%clk 0:00:20]}  Qe6 {[%clk 0:00:12]} 38. Rg3 {[%clk 0:00:14]}  Rh5 {[%clk 0:00:13]} 39. Qf2 {[%clk 0:00:09]}  Kh7 {[%clk 0:00:09]} 40. Qd2 {[%clk 0:00:05]}  Qf5 {[%clk 0:00:06]} 41. Qg2 {[%clk 0:00:02]}  Qe4 {[%clk 0:00:06]} 42. Qf2 {[%clk 0:00:01]}  a5 {[%clk 0:00:05]} 43. Rf3 {[%clk 0:00:01]}  Kg8 {[%clk 0:00:04]} 44. Rc3 {[%clk 0:00:01]}  Rf5 {[%clk 0:00:02]} 0-1


[Site "https://www.chess.com"]

[Event "Titled Tuesday Blitz February 14 Late 2023"]
[White "Gharibyan, Mamikon"]
[Black "Janaszak, Dawid"]
[WhiteFideId "13308300"]
[BlackFideId "1119206"]
[WhiteElo "2500"]
[BlackElo "2316"]
[Result "1-0"]
[Round "09"]
[TimeControl "180+2"]
[Date "2023.02.14"]
[WhiteClock "0:00:16"]
[BlackClock "0:00:02"]

1. e4 {[%clk 0:03:00]}  c5 {[%clk 0:02:57]} 2. Nf3 {[%clk 0:03:00]}  Nc6 {[%clk 0:02:57]} 3. d4 {[%clk 0:02:58]}  cxd4 {[%clk 0:02:58]} 4. Nxd4 {[%clk 0:02:58]}  g6 {[%clk 0:02:59]} 5. g3 {[%clk 0:02:45]}  Bg7 {[%clk 0:02:58]} 6. Nb3 {[%clk 0:02:45]}  a5 {[%clk 0:02:51]} 7. a4 {[%clk 0:02:43]}  h5 {[%clk 0:02:46]} 8. h4 {[%clk 0:02:35]}  d6 {[%clk 0:02:45]} 9. Bg2 {[%clk 0:02:34]}  Bg4 {[%clk 0:02:45]} 10. Qd2 {[%clk 0:02:23]}  Ne5 {[%clk 0:02:31]} 11. Qe3 {[%clk 0:02:07]}  Nc4 {[%clk 0:02:21]} 12. Qd3 {[%clk 0:02:03]}  Nxb2 {[%clk 0:02:09]} 13. Bxb2 {[%clk 0:01:57]}  Bxb2 {[%clk 0:02:09]} 14. Ra2 {[%clk 0:01:58]}  Bg7 {[%clk 0:02:06]} 15. Qb5+ {[%clk 0:01:52]}  Qd7 {[%clk 0:01:35]} 16. O-O {[%clk 0:01:35]}  Qxb5 {[%clk 0:01:31]} 17. axb5 {[%clk 0:01:33]}  b6 {[%clk 0:01:25]} 18. e5 {[%clk 0:01:30]}  Rd8 {[%clk 0:01:25]} 19. exd6 {[%clk 0:01:29]}  Rxd6 {[%clk 0:01:26]} 20. N1d2 {[%clk 0:01:28]}  Be2 {[%clk 0:01:21]} 21. Rb1 {[%clk 0:01:08]}  Nf6 {[%clk 0:01:08]} 22. Bc6+ {[%clk 0:01:06]}  Nd7 {[%clk 0:00:48]} 23. Re1 {[%clk 0:00:55]}  Re6 {[%clk 0:00:47]} 24. Ra4 {[%clk 0:00:41]}  Kd8 {[%clk 0:00:35]} 25. Ne4 {[%clk 0:00:28]}  Bg4 {[%clk 0:00:28]} 26. Nd4 {[%clk 0:00:18]}  Re5 {[%clk 0:00:10]} 27. f3 {[%clk 0:00:18]}  Bf5 {[%clk 0:00:08]} 28. Rd1 {[%clk 0:00:18]}  Kc7 {[%clk 0:00:07]} 29. Nxf5 {[%clk 0:00:18]}  Nc5 {[%clk 0:00:04]} 30. Nxc5 {[%clk 0:00:17]}  Rxf5 {[%clk 0:00:04]} 31. Rd7+ {[%clk 0:00:17]}  Kb8 {[%clk 0:00:04]} 32. Na6+ {[%clk 0:00:17]}  Kc8 {[%clk 0:00:04]} 33. Re4 {[%clk 0:00:16]}  Re5 {[%clk 0:00:03]} 34. Ra7 {[%clk 0:00:15]}  Rxe4 {[%clk 0:00:02]} 35. Ra8# {[%clk 0:00:16]} 1-0


[Site "https://www.chess.com"]

[Event "Titled Tuesday Blitz February 14 Late 2023"]
[White "Poliakova, Varvara"]
[Black "Samsonkin, Artiom"]
[WhiteFideId "13518313"]
[BlackFideId "13503111"]
[WhiteElo "2010"]
[BlackElo "2420"]
[Result "0-1"]
[Round "09"]
[TimeControl "180+2"]
[Date "2023.02.14"]
[WhiteClock "0:00:33"]
[BlackClock "0:00:36"]

1. e4 {[%clk 0:02:56]}  e6 {[%clk 0:03:00]} 2. d4 {[%clk 0:02:56]}  d5 {[%clk 0:03:01]} 3. e5 {[%clk 0:02:54]}  c5 {[%clk 0:03:01]} 4. c3 {[%clk 0:02:51]}  Nc6 {[%clk 0:03:01]} 5. Nf3 {[%clk 0:02:50]}  Qb6 {[%clk 0:03:02]} 6. a3 {[%clk 0:02:50]}  Nh6 {[%clk 0:02:59]} 7. b4 {[%clk 0:02:49]}  cxd4 {[%clk 0:03:00]} 8. cxd4 {[%clk 0:02:49]}  Nf5 {[%clk 0:03:00]} 9. Bb2 {[%clk 0:02:50]}  Bd7 {[%clk 0:02:49]} 10. g4 {[%clk 0:02:48]}  Nfe7 {[%clk 0:02:45]} 11. Nc3 {[%clk 0:02:43]}  h5 {[%clk 0:02:40]} 12. Na4 {[%clk 0:02:38]}  Qd8 {[%clk 0:02:39]} 13. g5 {[%clk 0:02:32]}  Nf5 {[%clk 0:02:37]} 14. Nc5 {[%clk 0:02:32]}  Bxc5 {[%clk 0:02:22]} 15. bxc5 {[%clk 0:02:31]}  Nce7 {[%clk 0:01:54]} 16. h4 {[%clk 0:02:27]}  O-O {[%clk 0:01:52]} 17. Bd3 {[%clk 0:02:25]}  Bb5 {[%clk 0:01:52]} 18. O-O {[%clk 0:02:22]}  Bxd3 {[%clk 0:01:51]} 19. Qxd3 {[%clk 0:02:22]}  Ng6 {[%clk 0:01:51]} 20. Bc1 {[%clk 0:02:07]}  Ngxh4 {[%clk 0:01:44]} 21. Ne1 {[%clk 0:01:59]}  b6 {[%clk 0:01:37]} 22. Qe2 {[%clk 0:01:49]}  bxc5 {[%clk 0:01:25]} 23. dxc5 {[%clk 0:01:40]}  Qc7 {[%clk 0:01:23]} 24. Bf4 {[%clk 0:01:35]}  Ng6 {[%clk 0:01:21]} 25. Bh2 {[%clk 0:01:32]}  Qxc5 {[%clk 0:01:12]} 26. Qxh5 {[%clk 0:01:28]}  Rab8 {[%clk 0:01:06]} 27. Ng2 {[%clk 0:01:18]}  Rfc8 {[%clk 0:01:01]} 28. Nf4 {[%clk 0:01:13]}  Nxf4 {[%clk 0:00:58]} 29. Bxf4 {[%clk 0:01:14]}  g6 {[%clk 0:00:59]} 30. Qh2 {[%clk 0:01:11]}  Kg7 {[%clk 0:00:58]} 31. Rac1 {[%clk 0:01:07]}  Qxa3 {[%clk 0:00:55]} 32. Qg2 {[%clk 0:00:51]}  Qa4 {[%clk 0:00:48]} 33. Qh2 {[%clk 0:00:48]}  Rxc1 {[%clk 0:00:46]} 34. Bxc1 {[%clk 0:00:47]}  Rh8 {[%clk 0:00:46]} 35. Qg2 {[%clk 0:00:47]}  Nh4 {[%clk 0:00:41]} 36. Qg3 {[%clk 0:00:42]}  Qe4 {[%clk 0:00:39]} 37. f3 {[%clk 0:00:40]}  Qd4+ {[%clk 0:00:40]} 38. Qf2 {[%clk 0:00:33]}  Nxf3+ {[%clk 0:00:37]} 39. Kg2 {[%clk 0:00:33]}  Rh2+ {[%clk 0:00:36]} 0-1


[Site "https://www.chess.com"]

[Event "Titled Tuesday Blitz February 14 Late 2023"]
[White "Bernadskiy, Vitaliy"]
[Black "Vovk, Orest"]
[WhiteFideId "14100371"]
[BlackFideId "14113490"]
[WhiteElo "2592"]
[BlackElo "2315"]
[Result "1-0"]
[Round "09"]
[TimeControl "180+2"]
[Date "2023.02.14"]
[WhiteClock "0:00:16"]
[BlackClock "0:00:01"]

1. Nc3 {[%clk 0:03:00]}  h6 {[%clk 0:02:51]} 2. f4 {[%clk 0:02:58]}  g5 {[%clk 0:02:50]} 3. fxg5 {[%clk 0:02:55]}  hxg5 {[%clk 0:02:50]} 4. e4 {[%clk 0:02:54]}  d6 {[%clk 0:02:47]} 5. d4 {[%clk 0:02:53]}  g4 {[%clk 0:02:45]} 6. Be3 {[%clk 0:02:51]}  Bh6 {[%clk 0:02:42]} 7. Qd2 {[%clk 0:02:50]}  Bxe3 {[%clk 0:02:41]} 8. Qxe3 {[%clk 0:02:51]}  Nc6 {[%clk 0:02:33]} 9. O-O-O {[%clk 0:02:50]}  e5 {[%clk 0:02:28]} 10. Bb5 {[%clk 0:02:43]}  exd4 {[%clk 0:02:25]} 11. Qxd4 {[%clk 0:02:42]}  Qf6 {[%clk 0:02:18]} 12. Bxc6+ {[%clk 0:02:19]}  bxc6 {[%clk 0:02:16]} 13. Qc4 {[%clk 0:02:18]}  Bd7 {[%clk 0:02:07]} 14. Nge2 {[%clk 0:02:19]}  Ne7 {[%clk 0:02:02]} 15. Kb1 {[%clk 0:02:18]}  Qe5 {[%clk 0:01:54]} 16. h3 {[%clk 0:02:11]}  gxh3 {[%clk 0:01:52]} 17. gxh3 {[%clk 0:02:12]}  Rxh3 {[%clk 0:01:45]} 18. Rhf1 {[%clk 0:01:53]}  Be6 {[%clk 0:01:42]} 19. Qa4 {[%clk 0:01:52]}  Kd7 {[%clk 0:01:33]} 20. Nd4 {[%clk 0:01:32]}  Rb8 {[%clk 0:01:18]} 21. Nd5 {[%clk 0:01:15]}  Nxd5 {[%clk 0:01:10]} 22. Qxc6+ {[%clk 0:01:11]}  Kd8 {[%clk 0:01:05]} 23. exd5 {[%clk 0:00:47]}  Bxd5 {[%clk 0:01:03]} 24. Qa4 {[%clk 0:00:46]}  c5 {[%clk 0:00:29]} 25. Rfe1 {[%clk 0:00:45]}  Re3 {[%clk 0:00:23]} 26. Rxe3 {[%clk 0:00:39]}  Qxe3 {[%clk 0:00:23]} 27. Qa5+ {[%clk 0:00:28]}  Kd7 {[%clk 0:00:15]} 28. Qxa7+ {[%clk 0:00:24]}  Rb7 {[%clk 0:00:13]} 29. Qa4+ {[%clk 0:00:25]}  Kc7 {[%clk 0:00:08]} 30. Nb5+ {[%clk 0:00:25]}  Kb8 {[%clk 0:00:06]} 31. Qa5 {[%clk 0:00:19]}  Qe8 {[%clk 0:00:02]} 32. a4 {[%clk 0:00:16]}  Qc6 {[%clk 0:00:01]} 33. Qd8+ {[%clk 0:00:15]}  Qc8 {[%clk 0:00:01]} 34. Qxd6+ {[%clk 0:00:16]} 1-0


[Site "https://www.chess.com"]